bitfinex/quotes_ETHUSD_20250210
["timestamp","ask_amount","ask_price","bid_price","bid_amount"]
[1739200696562,3.76054,2659.2,2658.8,0.7674]
[1739200697235,3.76045,2659.3,2658.8,4.52846]
[1739200697435,3.76024,2659.4,2658.9,3.79845546]
[1739200697640,3.76024,2659.4,2659.0,3.76078]
[1739200697840,3.76048,2659.3,2658.8,4.5284]
[1739200698135,3.76077,2659.1,2658.8,0.7674]
[1739200698340,3.76041,2659.3,2658.8,0.7674]
[1739200698537,3.76041,2659.3,2658.6,9.01127]
[1739200698538,4.58405,2659.2,2658.7,3.76123]
[1739200698745,4.52773796,2659.5,2658.7,2.70285551]
[1739200698930,0.76756796,2659.5,2659.1,3.76062]
[1739200699238,3.75956,2659.9,2659.3,4.52773]
[1739200699534,3.75956,2659.9,2659.4,3.76024]
[1739200699737,3.75956,2659.9,2659.4,3.7978384]
[1739200699913,0.8234,2660.2,2659.4,0.0375984]
[1739200700118,3.75931,2660.1,2659.4,9.01014]
[1739200700349,3.75975,2659.8,2659.4,5.25]
[1739200700535,3.75987,2659.7,2659.4,5.25]
[1739200700724,3.75975,2659.8,2659.4,5.25]
[1739200701862,4.52254599,2660.1,2659.4,5.25]
[1739200702155,3.75975,2659.8,2659.4,5.25]
[1739200702330,3.75953,2660.0,2659.4,5.25]
[1739200702536,3.75978,2659.8,2659.4,5.25]
[1739200702737,3.75984,2659.7,2659.4,5.25]
[1739200703046,3.7601,2659.5,2659.4,5.25]
[1739200703247,3.75984,2659.7,2659.1,0.7674]
[1739200703440,3.76018,2659.5,2659.1,0.7674]
[1739200704336,4.58325,2659.7,2659.1,0.7674]
[1739200704541,4.58325,2659.7,2659.1,4.52799]
[1739200704734,4.58325,2659.7,2659.1,0.7674]
[1739200704933,3.76017,2659.5,2658.9,5.25]
[1739200705136,3.76041,2659.3,2658.9,5.25]
[1739200705343,3.76069,2659.1,2658.9,5.25]
[1739200705661,3.76041,2659.3,2658.9,5.25]
[1739200705662,3.76041,2659.3,2659.0,0.08106124]
[1739200706433,4.51034258,2659.4,2659.0,0.08106124]
[1739200706660,3.76041,2659.3,2659.0,0.08106124]
[1739200706858,4.51026258,2659.4,2659.0,0.08106124]
[1739200707038,3.7604,2659.3,2659.0,0.08106124]
[1739200707759,0.75002258,2659.4,2659.0,0.08106124]
[1739200708059,4.51029258,2659.4,2659.0,0.08106124]
[1739200708761,4.58322,2659.7,2659.1,3.76065]
[1739200708927,4.58326,2659.7,2659.2,3.76045]
[1739200709125,0.8234,2659.7,2659.2,3.84132956]
[1739200709331,3.75996,2659.6,2659.2,0.08087956]
[1739200709635,3.76038,2659.4,2658.9,5.25]
[1739200709986,3.76041,2659.3,2659.0,0.08106124]
[1739200710131,3.76067,2659.1,2659.0,0.08106124]
[1739200711045,3.76054,2659.2,2659.0,0.08106124]
[1739200711248,3.76033,2659.4,2659.0,0.08106124]
[1739200711445,3.76024,2659.5,2659.0,0.08106124]
[1739200711631,3.76019,2659.5,2659.0,3.84185124]
[1739200712167,3.76026,2659.4,2659.0,3.84185124]
[1739200712364,3.76006,2659.6,2659.0,3.84185124]
[1739200712665,4.50610889,2659.6,2659.0,3.84185124]
[1739200713263,3.7601,2659.5,2659.0,3.84185124]
[1739200713762,4.50610889,2659.6,2659.1,0.7807]
[1739200713977,3.76006,2659.6,2659.1,4.54134]
[1739200714143,3.76006,2659.6,2659.2,3.8417387]
[1739200714469,3.76006,2659.6,2659.2,0.0812187]
[1739200714964,3.76024,2659.4,2659.2,0.0812187]
[1739200715468,7.52015,2659.6,2659.2,0.0812187]
[1739200715764,3.76006,2659.6,2659.2,0.0812187]
[1739200715963,3.76019,2659.5,2659.2,0.0812187]
[1739200716334,3.76036,2659.4,2659.2,0.0812187]
[1739200716535,3.76038,2659.3,2659.2,0.0812187]
[1739200716868,3.76067,2659.1,2658.9,5.25]
[1739200717052,3.76038,2659.3,2658.9,5.25]
[1739200717257,3.76019,2659.5,2658.9,5.25]
[1739200717452,3.75992,2659.7,2659.0,3.76079]
[1739200717653,0.7759,2659.8,2659.4,3.76015]
[1739200717853,3.75971,2659.8,2659.3,3.76037]
[1739200718365,3.75993,2659.7,2659.2,3.76044]
[1739200718569,4.5354,2660.0,2659.2,0.03760055]
[1739200718869,0.7759,2660.3,2659.6,3.75989]
[1739200719166,3.75926,2660.1,2659.6,3.75989]
[1739200720269,1.51292005,2660.3,2659.4,0.7807]
[1739200720471,3.76007,2659.6,2659.5,0.08081299]
[1739200720672,3.76007,2659.6,2659.2,5.25]
[1739200720846,3.7603,2659.4,2659.2,5.25]
[1739200721052,3.76023,2659.5,2659.3,0.0807888]
[1739200721372,3.76023,2659.5,2659.2,5.25]
[1739200721773,7.52013,2659.6,2659.3,0.0807888]
[1739200722070,3.76005,2659.6,2659.2,5.25]
[1739200722273,4.53564,2659.8,2659.3,0.08074837]
[1739200722571,3.75969,2659.8,2659.3,3.76038]
[1739200722760,3.75969,2659.8,2659.4,0.08066159]
[1739200722962,3.75998,2659.6,2659.4,0.08066159]
[1739200723138,3.7601,2659.5,2659.4,0.08066159]
[1739200723344,3.7601,2659.5,2659.1,0.7807]
[1739200723547,3.75974,2659.8,2659.4,0.08066159]
[1739200723762,3.75974,2659.8,2659.2,3.76045]
[1739200723993,3.75974,2659.8,2659.5,0.08057077]
[1739200724210,3.75947,2660.0,2659.4,3.76016]
[1739200724356,0.7748,2660.1,2659.7,3.75969]
[1739200724539,3.75919,2660.2,2659.7,4.51719]
[1739200724744,4.53371,2660.4,2659.8,0.0803145]
[1739200725056,3.75904,2660.3,2659.8,3.8399745]
[1739200725366,3.75913,2660.2,2659.8,0.0803145]
[1739200725696,3.75913,2660.2,2659.7,4.51719]
[1739200725970,3.75913,2660.2,2659.8,0.08022974]
[1739200726385,3.75913,2660.2,2659.7,4.51731]
[1739200726677,3.75936,2660.1,2659.8,0.08022974]
[1739200726876,3.75953,2659.9,2659.4,9.6175]
[1739200727048,3.7601,2659.5,2659.4,8.86]
[1739200727243,0.7748,2659.8,2659.1,6.0075]
[1739200727244,3.76032,2659.4,2659.1,6.0075]
[1739200727453,3.76041,2659.3,2659.1,6.0075]
[1739200727654,4.53455,2659.8,2659.1,6.0075]
[1739200727960,3.75985,2659.7,2659.1,9.76806]
[1739200728187,3.76011,2659.5,2659.1,9.76806]
[1739200728778,3.76011,2659.5,2659.1,0.7575]
[1739200729086,3.76011,2659.5,2659.0,3.7608]
[1739200729443,3.76011,2659.5,2658.9,8.34815]
[1739200729643,3.76027,2659.4,2659.0,3.7608]
[1739200729869,3.76003,2659.6,2659.0,3.7608]
[1739200730075,3.76003,2659.6,2659.1,3.76062]
[1739200730799,3.75992,2659.7,2659.0,3.7608]
[1739200730950,3.75996,2659.6,2659.0,3.7608]
[1739200731449,3.76015,2659.5,2658.9,0.8264]
[1739200731650,3.76037,2659.4,2658.9,0.8264]
[1739200731849,3.76047,2659.3,2658.9,0.8264]
[1739200732284,3.76055,2659.2,2658.9,0.8264]
[1739200732485,3.76055,2659.2,2658.8,5.25]
[1739200732778,3.76062,2659.2,2658.7,0.8264]
[1739200732942,3.76067,2659.1,2658.7,0.8264]
[1739200733147,3.76074,2659.1,2658.7,0.8264]
[1739200734347,3.76062,2659.2,2658.7,4.58759]
[1739200734844,3.76032,2659.4,2658.9,3.76094]
[1739200735448,3.7604,2659.3,2659.0,0.08120253]
[1739200735678,3.76032,2659.4,2659.0,0.08120253]
[1739200735884,3.76032,2659.4,2659.1,0.08111169]
[1739200736070,3.76032,2659.4,2658.9,3.76086]
[1739200736450,3.76032,2659.4,2659.0,0.08120253]
[1739200736646,7.52093,2659.3,2658.8,3.76108]
[1739200736880,3.76045,2659.3,2658.9,0.08129338]
[1739200737097,7.52093,2659.3,2658.9,0.08129338]
[1739200737303,3.76081,2659.0,2658.9,0.08129338]
[1739200737475,3.76081,2659.0,2658.7,0.8264]
[1739200737853,3.76081,2659.0,2658.8,0.07844297]
[1739200738182,3.76059,2659.2,2658.8,0.07844297]
[1739200738407,3.76027,2659.4,2658.8,0.07844297]
[1739200738683,3.7605,2659.3,2658.8,3.83950297]
[1739200738864,3.76027,2659.4,2658.9,3.76093]
[1739200739052,7.52065,2659.4,2658.9,3.76093]
[1739200739381,3.76046,2659.3,2659.0,0.07833393]
[1739200739804,3.76054,2659.2,2658.7,6.75598466]
[1739200739973,7.52118,2659.2,2659.1,0.07824309]
[1739200740177,3.76054,2659.2,2658.7,6.75598466]
[1739200740361,3.76054,2659.2,2659.1,0.07820271]
[1739200740687,0.7886,2659.1,2658.5,13.39572]
[1739200741002,0.7886,2659.1,2658.6,3.76132]
[1739200741003,3.76067,2659.1,2658.6,3.76132]
[1739200741152,3.76035,2659.4,2658.7,3.7612]
[1739200741500,3.76047,2659.3,2658.8,3.76101]
[1739200741963,3.76039,2659.3,2658.9,0.7743]
[1739200742175,3.76035,2659.4,2658.9,0.7743]
[1739200742488,3.76035,2659.4,2658.9,4.53522]
[1739200743283,3.76062,2659.2,2658.6,0.7743]
[1739200743485,3.761,2658.9,2658.6,0.7743]
[1739200744463,3.76083,2659.0,2658.6,4.53566]
[1739200744668,3.76065,2659.2,2658.7,3.76121]
[1739200744878,3.76065,2659.2,2658.6,4.53566]
[1739200745191,3.76065,2659.2,2658.8,3.76109]
[1739200745592,3.76046,2659.3,2658.8,3.76109]
[1739200745797,7.52095,2659.3,2658.8,3.761]
[1739200745960,3.76066,2659.2,2658.7,2.16842466]
[1739200746298,0.7886,2659.3,2658.7,2.16842466]
[1739200746459,3.76078,2659.1,2658.7,2.16842466]
[1739200746662,3.76082,2659.0,2658.7,2.16842466]
[1739200747285,3.76052,2659.2,2658.4,2.16842466]
[1739200747486,3.76151,2658.6,2658.3,0.7743]
[1739200747687,3.7616,2658.5,2658.3,0.7743]
[1739200748381,3.76181,2658.3,2658.1,2.94272466]
[1739200748691,3.76217,2658.1,2657.8,0.7743]
[1739200748894,3.76224,2658.0,2657.8,0.7743]
[1739200749219,3.76217,2658.1,2657.8,0.7743]
[1739200749803,3.76231,2658.0,2657.6,8.86]
[1739200750221,3.76217,2658.1,2657.6,8.86]
[1739200750406,3.76217,2658.1,2657.7,0.07989918]
[1739200751288,4.55047,2658.3,2657.7,0.07989918]
[1739200751289,3.76194,2658.2,2657.7,0.07989918]
[1739200751492,3.76251,2657.8,2657.7,0.07989918]
[1739200751693,3.76305,2657.5,2657.3,0.7743]
[1739200751894,3.76305,2657.5,2657.1,0.005]
[1739200751895,3.76305,2657.5,2657.1,0.7793]
[1739200752094,4.55005,2658.6,2657.8,3.76242]
[1739200752295,4.55005,2658.6,2658.0,3.76217]
[1739200752489,8.31155,2658.6,2657.9,0.7743]
[1739200752723,0.7886,2658.6,2658.0,3.76209]
[1739200752963,0.7886,2658.6,2658.0,7.52422]
[1739200753102,3.76126,2658.7,2658.2,3.76192]
[1739200753291,3.76126,2658.7,2658.1,3.76203]
[1739200753623,3.76138,2658.6,2658.1,3.76203]
[1739200753825,3.76138,2658.6,2657.9,9.78658]
[1739200753826,3.7616,2658.5,2657.9,9.78658]
[1739200754232,3.76204,2658.2,2657.9,5.25]
[1739200754596,7.52407,2658.2,2657.9,5.25]
[1739200754803,3.76209,2658.1,2657.9,5.25]
[1739200755220,3.76203,2658.2,2657.9,5.25]
[1739200755599,0.7884,2658.1,2657.9,5.25]
[1739200755806,3.76237,2657.9,2657.4,5.93145466]
[1739200756022,3.76234,2658.0,2657.4,9.69444466]
[1739200756327,3.76233,2658.0,2657.4,2.16842466]
[1739200756524,0.7884,2658.1,2657.3,0.776]
[1739200756690,3.76293,2657.5,2657.3,0.776]
[1739200756890,3.76293,2657.5,2657.2,5.25]
[1739200757198,3.76335,2657.2,2657.1,0.005]
[1739200758315,4.55175,2657.2,2657.1,0.005]
[1739200758813,4.55218,2656.9,2656.8,0.146396]
[1739200759218,4.55218,2656.9,2656.8,0.22791389]
[1739200760528,7.55218,2656.9,2656.8,0.22791389]
[1739200760733,7.55218,2656.9,2656.8,0.146396]
[1739200761831,8.31732177,2656.9,2656.8,0.146396]
[1739200762709,8.86732177,2656.9,2656.8,6e-06]
[1739200763118,8.31732177,2656.9,2656.8,6e-06]
[1739200764629,5.31732177,2656.9,2656.8,6e-06]
[1739200765032,8.31732177,2656.9,2656.8,0.0828057]
[1739200765206,8.31732177,2656.9,2656.8,6e-06]
[1739200765623,3.0,2656.8,2655.8,0.776]
[1739200765823,3.76468,2656.3,2655.8,4.54125]
[1739200766033,3.76468,2656.3,2655.9,0.08361896]
[1739200766394,7.52941,2656.3,2655.9,0.08361896]
[1739200766731,7.52939,2656.3,2655.9,0.08361896]
[1739200766930,3.76503,2656.1,2655.9,0.08361896]
[1739200767231,4.55311,2656.3,2655.9,0.08361896]
[1739200767606,4.55311,2656.3,2655.7,3.76541]
[1739200767808,3.76478,2656.2,2656.0,0.08352791]
[1739200768014,3.76471,2656.3,2655.8,3.76531]
[1739200768335,3.76471,2656.3,2655.8,3.76526]
[1739200768517,3.76471,2656.3,2655.9,0.08361896]
[1739200769333,3.76506,2656.0,2655.9,0.08361896]
[1739200769659,3.76562,2655.6,2655.0,7.41842466]
[1739200769807,3.76562,2655.6,2655.0,0.776]
[1739200770225,3.76562,2655.6,2654.6,3.76693]
[1739200770435,3.76562,2655.6,2654.8,0.776]
[1739200770818,4.55402,2655.6,2654.8,0.776]
[1739200771135,4.55402,2655.6,2654.4,20.04567466]
[1739200771351,3.76699,2654.7,2654.5,0.776]
[1739200771505,3.76716,2654.6,2654.3,0.9206137]
[1739200771701,7.53402,2654.7,2654.3,0.9206137]
[1739200772105,0.7884,2655.0,2654.3,0.9206137]
[1739200772106,3.76669,2654.9,2654.3,0.9206137]
[1739200772307,3.76698,2654.7,2654.3,0.8206137]
[1739200772542,3.76668,2654.9,2654.3,0.8206137]
[1739200772719,3.76684,2654.8,2654.3,0.8206137]
[1739200773338,3.76701,2654.7,2654.3,0.8206137]
[1739200773730,8.2745462,2654.9,2654.3,0.8206137]
[1739200774040,7.53343,2654.9,2654.3,4.5879837]
[1739200774342,3.76684,2654.8,2654.3,4.5879837]
[1739200774539,3.76699,2654.7,2654.3,0.8206137]
[1739200774727,3.76712,2654.6,2654.3,0.8206137]
[1739200775037,3.76699,2654.7,2654.3,0.8206137]
[1739200775237,3.76669,2654.9,2654.3,4.5880237]
[1739200775437,3.76669,2654.9,2654.4,5.93574466]
[1739200775642,3.76689,2654.8,2654.4,2.16842466]
[1739200775842,3.76669,2654.9,2654.4,2.16842466]
[1739200776048,3.76669,2654.9,2654.4,5.93574466]
[1739200776211,3.76649,2655.0,2654.4,9.70294466]
[1739200776410,3.76649,2655.0,2654.5,3.76717]
[1739200776614,3.7662,2655.2,2654.5,3.76717]
[1739200776615,3.7662,2655.2,2654.6,3.76703]
[1739200776841,4.50776495,2655.4,2654.7,0.776]
[1739200777023,4.50776495,2655.4,2654.8,3.76673]
[1739200777024,3.76615,2655.3,2654.8,3.76673]
[1739200777219,3.76596,2655.4,2654.8,3.76667]
[1739200777419,3.76529,2655.9,2655.0,2.16842466]
[1739200777623,3.76526,2655.9,2655.2,3.76609]
[1739200777847,6.76544,2655.8,2655.2,7.53218]
[1739200778028,6.76544,2655.8,2655.2,7.53219]
[1739200778424,3.76473,2656.3,2655.6,2.16842466]
[1739200778649,0.7884,2656.5,2655.8,3.76524]
[1739200778650,3.76457,2656.4,2655.8,3.76524]
[1739200778852,0.7884,2656.5,2655.6,5.93397466]
[1739200779021,3.76488,2656.2,2655.6,9.69949466]
[1739200779222,3.76488,2656.2,2655.6,9.69946466]
[1739200779431,3.76457,2656.4,2655.6,5.93394466]
[1739200779755,1.51710873,2656.7,2655.8,0.776]
[1739200779936,3.76424,2656.6,2656.0,10.20463165]
[1739200780137,3.76424,2656.6,2656.0,3.76497]
[1739200780339,3.76424,2656.6,2656.1,0.08405218]
[1739200780652,1.51710873,2656.7,2656.1,0.08405218]
[1739200780952,1.51710873,2656.7,2656.4,0.776]
[1739200781156,1.51710873,2656.7,2656.5,0.08359093]
[1739200781730,3.76389,2656.9,2656.5,0.08359093]
[1739200781935,3.76395,2656.8,2656.5,0.08359093]
[1739200782821,3.76408,2656.7,2656.5,0.08359093]
[1739200783152,0.73823529,2657.1,2656.5,0.08359093]
[1739200783329,3.7642,2656.6,2656.5,0.08359093]
[1739200783536,3.7642,2656.6,2656.1,14.11]
[1739200783858,3.7642,2656.6,2656.2,0.08371433]
[1739200784179,3.764,2656.8,2656.2,0.08371433]
[1739200784650,3.764,2656.8,2656.3,3.76462]
[1739200784872,4.52371,2657.0,2656.2,0.08371433]
[1739200784873,3.76452,2656.4,2656.2,0.08371433]
[1739200785040,3.76452,2656.4,2656.1,14.11]
[1739200785437,7.5291,2656.4,2656.1,14.11]
[1739200785743,3.76452,2656.4,2656.1,14.11]
[1739200786159,3.76452,2656.4,2656.0,0.8092]
[1739200786454,4.52452,2656.4,2655.7,9.82458]
[1739200786657,3.76486,2656.2,2655.7,9.82459]
[1739200786952,4.52456,2656.4,2655.7,13.58999]
[1739200787157,3.76463,2656.3,2655.8,3.76534]
[1739200787525,4.52456,2656.4,2655.8,3.76534]
[1739200787725,8.28913,2656.4,2655.8,3.76534]
[1739200787958,4.52456,2656.4,2655.8,3.76534]
[1739200788583,0.76,2656.4,2655.7,6.0592]
[1739200788857,3.7655,2655.7,2655.1,0.8092]
[1739200789073,3.76562,2655.6,2655.1,0.8092]
[1739200789262,3.76529,2655.9,2655.1,7.57545]
[1739200789562,0.74613757,2656.0,2655.1,7.57545]
[1739200789563,0.74613757,2656.0,2655.1,7.25006165]
[1739200789746,3.7657,2655.6,2655.1,4.57545]
[1739200789947,7.53142,2655.6,2655.1,4.57545]
[1739200790159,3.7657,2655.6,2655.1,4.57545]
[1739200790457,3.76538,2655.8,2655.1,4.57545]
[1739200790624,3.76513,2656.0,2655.1,3.48381165]
[1739200790823,7.5297,2656.2,2655.6,3.76561]
[1739200791025,7.5297,2656.2,2655.1,3.48381165]
[1739200791026,3.76501,2656.1,2655.5,3.76569]
[1739200791225,3.76509,2656.0,2655.4,6.44050165]
[1739200791426,3.76509,2656.0,2655.5,3.76567]
[1739200791737,6.76495,2656.1,2655.6,3.76558]
[1739200792454,8.28918,2656.4,2655.8,3.76531]
[1739200792654,0.76,2656.4,2655.7,0.8092]
[1739200792821,3.76488,2656.2,2655.7,0.8092]
[1739200793437,3.76464,2656.3,2655.8,3.76534]
[1739200794463,3.76464,2656.3,2655.8,3.76524]
[1739200794958,3.76515,2656.0,2655.7,0.8092]
[1739200795160,7.52898,2656.4,2655.5,14.11]
[1739200795376,3.74893686,2656.5,2655.5,14.11]
[1739200795523,3.76528,2655.9,2655.6,0.08383553]
[1739200795726,3.76487,2656.2,2655.6,0.08383553]
[1739200795928,3.76487,2656.2,2655.7,3.76534]
[1739200796123,3.76463,2656.3,2655.8,0.08375051]
[1739200796324,3.76463,2656.3,2655.5,17.87566]
[1739200796528,3.76463,2656.3,2655.7,3.76547]
[1739200796766,3.76463,2656.3,2655.8,0.08375051]
[1739200797025,11.27777686,2656.5,2655.7,3.76547]
[1739200797255,6.7644,2656.5,2656.0,4.55974]
[1739200797426,3.76453,2656.4,2656.0,0.7947]
[1739200797621,6.7644,2656.5,2656.1,0.08352185]
[1739200797835,3.76464,2656.3,2656.1,0.08352185]
[1739200798040,3.76477,2656.2,2656.1,0.08352185]
[1739200798445,3.7654,2655.8,2655.6,0.8241]
[1739200798653,3.7654,2655.8,2655.3,0.8241]
[1739200798843,3.76549,2655.7,2655.3,0.8241]
[1739200799186,3.7654,2655.8,2655.3,4.59014]
[1739200799878,3.76515,2656.0,2655.3,4.59008]
[1739200800169,0.7747,2656.1,2655.3,0.8241]
[1739200800476,3.76548,2655.7,2655.3,0.8241]
[1739200800774,3.76573,2655.6,2655.1,14.11]
[1739200800976,3.76603,2655.4,2655.1,14.11]
[1739200801335,3.76603,2655.4,2655.0,0.8241]
[1739200801536,8.30612,2655.6,2655.0,0.8241]
[1739200801795,4.54037,2655.6,2655.0,0.8241]
[1739200801978,4.54037,2655.6,2655.0,4.59053]
[1739200802161,4.54037,2655.6,2655.0,0.8241]
[1739200802363,3.76592,2655.4,2655.0,0.8241]
[1739200802551,3.76577,2655.5,2654.9,3.7665]
[1739200802862,4.54037,2655.6,2654.9,3.7665]
[1739200803066,3.76577,2655.5,2655.0,3.76647]
[1739200803266,3.76577,2655.5,2654.9,7.53304]
[1739200803467,3.76577,2655.5,2654.9,3.7665]
[1739200803778,3.76577,2655.5,2654.9,7.53301]
[1739200803978,3.76567,2655.6,2654.8,3.0]
[1739200804286,3.76541,2655.8,2655.2,3.76605]
[1739200804456,3.76514,2656.0,2655.6,0.8241]
[1739200804653,3.76521,2655.9,2655.6,0.8241]
[1739200804852,0.7747,2656.2,2655.1,0.8241]
[1739200805040,3.76562,2655.6,2655.1,0.8241]
[1739200805246,3.76555,2655.7,2655.1,4.59041]
[1739200805549,0.74545494,2656.1,2655.1,0.8241]
[1739200805748,3.765,2656.1,2655.6,3.76562]
[1739200805953,3.765,2656.1,2655.7,0.8241]
[1739200806349,3.76473,2656.3,2655.7,0.8241]
[1739200806552,3.76493,2656.1,2655.7,0.8241]
[1739200807158,3.0,2656.2,2655.7,0.8241]
[1739200807376,3.76473,2656.3,2655.8,3.76531]
[1739200807564,3.76415,2656.7,2656.0,3.76506]
[1739200807759,3.76415,2656.7,2656.2,3.76468]
[1739200808087,3.76392,2656.8,2656.1,0.8241]
[1739200808380,3.76457,2656.4,2655.7,0.8241]
[1739200808558,8.3033,2656.6,2656.0,3.76504]
[1739200808746,3.76459,2656.4,2656.1,0.8241]
[1739200808946,7.52965,2656.2,2655.8,0.8241]
[1739200809185,7.52965,2656.2,2655.6,3.76554]
[1739200809186,0.7747,2656.4,2655.5,0.8241]
[1739200809483,3.76571,2655.6,2655.2,0.8241]
[1739200809647,3.7648,2656.2,2654.9,0.8241]
[1739200809648,3.76606,2655.3,2654.9,0.8241]
[1739200810080,3.76551,2655.7,2654.9,0.8241]
[1739200810248,3.7663,2655.2,2654.9,0.8241]
[1739200810574,7.53199,2655.4,2655.0,0.08468567]
[1739200810751,3.76597,2655.4,2655.0,0.08468567]
[1739200811182,3.76568,2655.6,2655.0,3.85115567]
[1739200811483,7.53139,2655.6,2655.0,3.85115567]
[1739200811667,3.76568,2655.6,2655.0,3.85115567]
[1739200811868,0.73679169,2655.5,2655.0,0.08468567]
[1739200812074,3.76599,2655.4,2655.0,0.08468567]
[1739200812276,3.76605,2655.3,2655.0,0.08468567]
[1739200812448,0.73679169,2655.5,2655.0,0.08468567]
[1739200812651,4.50269169,2655.5,2655.0,0.08468567]
[1739200812881,3.76598,2655.4,2655.0,0.08468567]
[1739200813406,4.50269169,2655.5,2655.0,0.08468567]
[1739200813603,3.76594,2655.4,2655.0,0.08468567]
[1739200813801,4.50269169,2655.5,2655.0,0.08468567]
[1739200814002,4.50266169,2655.5,2655.0,0.08468567]
[1739200814204,3.76557,2655.7,2655.1,3.76621]
[1739200814396,3.76557,2655.7,2655.2,3.76618]
[1739200814594,3.76557,2655.7,2655.2,3.85100321]
[1739200814771,4.53998,2655.9,2655.2,3.85100321]
[1739200814976,3.76528,2655.9,2655.4,3.7659]
[1739200815200,3.73589971,2656.0,2655.5,0.08454587]
[1739200815504,7.50098971,2656.0,2655.5,0.08454587]
[1739200815807,6.76509,2656.0,2655.5,0.08454587]
[1739200817005,3.76552,2655.7,2655.5,0.08454587]
[1739200817209,3.76562,2655.6,2655.5,0.08454587]
[1739200817506,3.76562,2655.6,2655.1,4.59401]
[1739200817705,3.76562,2655.6,2655.5,0.08442846]
[1739200817909,3.76562,2655.6,2655.1,4.59401]
[1739200818074,3.76527,2655.9,2655.5,0.08442846]
[1739200818274,3.76543,2655.8,2655.3,3.76604]
[1739200818509,3.76527,2655.9,2655.6,0.08438191]
[1739200818679,3.76509,2656.0,2655.6,0.8277]
[1739200818878,3.76509,2656.0,2655.7,0.08428678]
[1739200819335,3.76521,2655.9,2655.7,0.08428678]
[1739200819604,3.76509,2656.0,2655.7,0.08428678]
[1739200820007,3.76521,2655.9,2655.7,0.08428678]
[1739200820213,3.76534,2655.8,2655.7,0.08428678]
[1739200820511,3.76509,2656.0,2655.7,0.08428678]
[1739200820708,3.76527,2655.9,2655.7,0.08428678]
[1739200821010,3.76509,2656.0,2655.8,0.08409451]
[1739200821382,3.76509,2656.0,2655.5,3.76567]
[1739200821578,5.34645015,2656.2,2655.4,0.8277]
[1739200821579,3.76485,2656.2,2655.9,0.08400345]
[1739200821914,0.55,2656.9,2655.4,0.8277]
[1739200821915,3.76507,2656.0,2655.7,0.8277]
[1739200822118,7.5297,2656.2,2655.7,0.8277]
[1739200822410,3.76505,2656.1,2655.7,0.8277]
[1739200822987,3.76485,2656.2,2655.7,0.8277]
[1739200823182,3.76485,2656.2,2655.8,0.08410666]
[1739200823384,3.76477,2656.3,2655.7,4.59309]
[1739200823584,3.76486,2656.2,2655.8,0.08410666]
[1739200823893,7.52972,2656.2,2655.7,0.8277]
[1739200824093,7.52973,2656.2,2655.9,0.08401559]
[1739200824291,3.76513,2656.0,2655.8,0.08410666]
[1739200824490,3.76492,2656.1,2656.0,0.08392454]
[1739200824695,3.76491,2656.1,2655.9,0.0839225]
[1739200824897,3.76491,2656.1,2656.0,0.08383145]
[1739200825208,3.76491,2656.1,2655.7,0.8277]
[1739200825399,3.76491,2656.1,2656.0,0.08385168]
[1739200825605,3.76537,2655.8,2655.3,2.17389035]
[1739200825800,3.7657,2655.6,2655.3,0.8277]
[1739200826013,3.76548,2655.7,2655.3,0.8277]
[1739200826213,3.76573,2655.6,2655.3,0.8277]
[1739200826413,3.76576,2655.5,2655.1,0.8277]
[1739200826615,3.76613,2655.3,2654.9,9.6877]
[1739200826812,3.0,2655.8,2654.9,13.45428]
[1739200826813,3.76605,2655.4,2654.9,13.45428]
[1739200827115,3.76598,2655.4,2654.9,13.45428]
[1739200827316,3.76608,2655.3,2654.9,9.6877]
[1739200827518,3.76615,2655.3,2654.2,8.86]
[1739200827692,3.76715,2654.6,2654.4,0.8088]
[1739200827894,3.76715,2654.6,2654.2,0.8088]
[1739200828095,3.76684,2654.8,2654.2,4.57637]
[1739200828298,3.76635,2655.1,2654.5,3.76707]
[1739200828496,0.8061,2655.5,2654.5,0.8088]
[1739200828711,3.76607,2655.3,2654.7,3.76682]
[1739200829424,3.76607,2655.3,2654.8,3.76675]
[1739200829622,3.76607,2655.3,2654.6,3.76695]
[1739200829925,4.57139,2655.9,2655.0,3.76635]
[1739200830218,4.57139,2655.9,2654.9,0.8088]
[1739200830219,3.76565,2655.6,2654.9,0.8088]
[1739200830418,7.53164,2655.5,2654.9,4.57533]
[1739200830623,0.74408253,2655.7,2654.9,0.8088]
[1739200830811,3.76614,2655.3,2654.9,0.8088]
[1739200831318,0.74408253,2655.7,2654.9,0.8088]
[1739200831520,0.8061,2656.3,2655.3,2.17389035]
[1739200831695,0.8061,2656.3,2655.8,0.8088]
[1739200831696,1.56994828,2656.3,2655.8,0.8088]
[1739200831902,3.71457,2656.4,2655.8,4.57412]
[1739200832114,3.71457,2656.4,2655.8,0.8088]
[1739200832315,3.76471,2656.3,2655.8,0.8088]
[1739200832722,3.76471,2656.3,2655.8,4.57413]
[1739200832886,3.71457,2656.4,2655.8,4.57413]
[1739200832887,3.71457,2656.4,2655.8,0.8088]
[1739200833092,3.76478,2656.2,2655.8,0.8088]
[1739200833508,3.76516,2656.0,2655.4,3.8088]
[1739200833714,3.76516,2656.0,2655.4,7.5747]
[1739200834021,3.76516,2656.0,2655.4,0.8088]
[1739200834333,3.76529,2655.9,2655.4,0.8088]
[1739200835416,4.52968726,2656.0,2655.4,4.57467]
[1739200835618,8.29485726,2656.0,2655.4,4.57467]
[1739200835816,3.76487,2656.2,2655.6,3.7655]
[1739200836015,7.29248923,2657.0,2655.4,0.8088]
[1739200836016,0.76422549,2656.3,2655.8,3.7652]
[1739200836326,0.76422549,2656.3,2655.7,3.76542]
[1739200836327,3.7647,2656.3,2655.7,3.76542]
[1739200836721,3.7647,2656.3,2655.5,3.8033434]